[Event "CCT Julius Baer-D3 2024"]
[Site "Online"]
[Date "2024.09.28"]
[Round "52"]
[White "Makarian, Rudik"]
[Black "Deac, Bogdan-Daniel"]
[Result "1/2-1/2"]
[ECO "D32"]
[WhiteElo "2550"]
[BlackElo "2680"]
[Annotator "TA"]
[PlyCount "92"]
[EventDate "2024.09.25"]
[EventType "swiss"]
[EventCountry "NET"]
[SourceTitle "playchess.com"]
[Source "ChessBase"]
[SourceQuality "1"]
[TimeControl "600+2"]

{[%evp 16,92,17,14,10,10,8,7,19,18,16,9,16,27,26,28,25,19,27,20,42,35,63,38,58,0,0,-23,0,-9,0,0,0,0,0,-17,-20,-18,-22,-21,6,6,10,0,6,6,6,6,6,6,13,6,60,0,7,7,0,0,0,0,0,0,0,0,0,0,0,0,0,0,0,0,0,0,0,0,0,0,0]} 1. d4 {[%emt 0:00:05]} Nf6 {[%emt 0:00:04]} 2. c4 {[%emt 0:00:01]} e6 {[%emt 0:00:01]} 3. Nf3 {[%emt 0:00:00]} d5 {[%emt 0:00:01]} 4. Nc3 {[%emt 0:00:01]} c5 {[%emt 0:00:01]} 5. e3 {[%emt 0:00:03]} Nc6 {[%emt 0:00:02]} 6. cxd5 {[%emt 0:00:03]} exd5 {[%emt 0:00:27]} 7. Bb5 {[%emt 0:00:04]} cxd4 {[%emt 0:00:01]} 8. Nxd4 {[%emt 0:00:02]} Bd7 {[%emt 0:00:02]} 9. O-O {[%emt 0:00:04]} Bd6 {[%emt 0:00:02]} 10. Qb3 {[%emt 0:00:01]} a6 {[%emt 0:01:55]} 11. Be2 {[%emt 0:00:07]} Na5 {[%emt 0:00:08]} 12. Qd1 {[%emt 0:00:07]} O-O {[%emt 0:00:08]} 13. Bf3 {[%emt 0:00:19]} Be6 {[%emt 0:00:09]} 14. Nce2 {[%emt 0:00:16]} Nc6 {[%emt 0:00:37]} 15. b3 {[%emt 0:00:06]} Qc7 {[%emt 0:01:19]} 16. h3 {[%emt 0:00:06]} Nxd4 {[%emt 0:00:10]} 17. Nxd4 {[%emt 0:00:03]} Qe7 {[%emt 0:00:00]} 18. Bb2 {[%emt 0:00:07]} Bc7 {[%emt 0:00:02]} 19. h4 {[%emt 0:02:34]} Ne4 {[%emt 0:01:02]} 20. Bxe4 {[%emt 0:00:25]} (20. Nxe6 $14 Qxe6 21. Re1) 20... dxe4 $11 {[%emt 0:01:07]} ({But not} 20... Qxh4 $6 21. f4 dxe4 22. Nxe6 fxe6 23. Qc2 $16) 21. Rc1 {[%emt 0:02:32]} Rac8 {[%emt 0:00:06]} 22. Qh5 {[%emt 0:00:17]} Bd6 {[%emt 0:01:02]} (22... Qd6 {is more complex.} 23. g3 Bh3 24. Nf5 Qd7) 23. Rfd1 {[%emt 0:00:38]} Rxc1 {[%emt 0:00:12]} 24. Rxc1 {[%emt 0:00:00]} Bd7 {[%emt 0:00:05]} 25. Qd5 {[%emt 0:00:19]} Qe5 {[%emt 0:00:03]} 26. Qxe5 {[%emt 0:00:10]} Bxe5 {[%emt 0:00:01]} 27. Rc2 {[%emt 0:00:22][%cal Od4f5]} Bxd4 {[%emt 0:00:53]} 28. Bxd4 {[%emt 0:00:01][%mdl 4096] Endgame. KRB-KRB} Rc8 {[%emt 0:00:01]} 29. Rd2 {[%emt 0:00:10][%cal Od4g7]} Be6 {[%emt 0:00:12]} 30. Kh2 {[%emt 0:00:02]} f6 {[%emt 0:00:27]} 31. Kg3 {[%emt 0:00:02]} Rd8 {[%emt 0:00:15]} 32. Kf4 {[%emt 0:00:02]} Kf7 {[%emt 0:00:04]} 33. Rc2 {[%emt 0:00:26]} Rc8 {[%emt 0:00:02]} (33... Rd7 $11) 34. Rd2 {[%emt 0:00:11]} (34. Rxc8 $14 Bxc8 35. Kxe4) 34... Rd8 {[%emt 0:00:01] The position is equal.} 35. g3 {[%emt 0:00:53]} Bd5 {[%emt 0:00:05]} 36. Rc2 {[%emt 0:00:02]} Bc6 {[%emt 0:00:04]} 37. g4 {[%emt 0:00:05]} h6 {[%emt 0:00:03]} 38. Rc1 {[%emt 0:00:15]} g5+ {[%emt 0:00:05]} 39. Kg3 {[%emt 0:00:01]} Rg8 {[%emt 0:00:13]} 40. hxg5 {[%emt 0:00:15]} hxg5 {[%emt 0:00:00]} 41. Rh1 {[%emt 0:00:02]} Kg6 {[%emt 0:00:01]} 42. Rc1 {[%emt 0:00:01]} Rd8 {[%emt 0:00:02]} 43. Rc5 {[%emt 0:00:01]} Rd5 {[%emt 0:00:05]} 44. Rxd5 {[%emt 0:00:04]} Bxd5 {[%emt 0:00:01]} 45. Bb2 {[%emt 0:00:00]} f5 {[%emt 0:00:01]} 46. gxf5+ {[%emt 0:00:02]} Kxf5 {[%emt 0:00:00] Weighted Error Value: White=0.07 (flawless) /Black=0.08 (flawless) .  Mistake:       	White=2     	Black=1      Inaccurate:     	---       	Black=2      OK:         	White=10    	Black=12     Best:        	---       	Black=1} 1/2-1/2